bitfinex/quotes_ETHUSD_20250422
["timestamp","ask_amount","ask_price","bid_price","bid_amount"]
[1745325105668,6.12821022,1631.8,1631.6,6.2357]
[1745325106245,6.12857755,1631.7,1631.6,5.465]
[1745325106946,12.25741511,1631.7,1631.4,0.7707]
[1745325107140,6.12944192,1631.5,1631.2,25.70090353]
[1745325107373,6.12901774,1631.6,1631.3,5.466]
[1745325107575,12.25825751,1631.6,1631.3,5.466]
[1745325107876,6.12949386,1631.5,1631.3,5.466]
[1745325109482,6.13001717,1631.4,1631.2,20.198]
[1745325109685,6.13001717,1631.4,1631.3,5.466]
[1745325110474,8.13659979,1631.5,1631.3,5.466]
[1745325110878,14.26621215,1631.5,1631.3,5.466]
[1745325111043,6.12970454,1631.4,1631.3,5.466]
[1745325111876,8.13659979,1631.5,1631.3,5.466]
[1745325112042,6.91074863,1631.5,1631.3,5.466]
[1745325112478,0.7812,1631.5,1631.3,5.466]
[1745325112938,6.9105298,1631.5,1631.3,5.466]
[1745325113142,13.04014145,1631.5,1631.3,5.466]
[1745325113369,6.9105298,1631.5,1631.3,5.466]
[1745325114586,0.7812,1631.5,1631.3,5.466]
[1745325114889,6.91053565,1631.5,1631.3,5.466]
[1745325115180,0.7812,1631.5,1631.3,5.466]
[1745325115485,6.91054056,1631.5,1631.3,5.466]
[1745325116381,13.04015907,1631.5,1631.3,5.466]
[1745325116587,6.91054056,1631.5,1631.3,5.466]
[1745325120471,0.7812,1631.5,1631.3,5.466]
[1745325120677,6.12915441,1631.6,1631.3,5.466]
[1745325120865,13.02374435,1631.8,1631.4,6.12969408]
[1745325121066,6.08,1631.8,1631.5,6.12932127]
[1745325121885,6.08,1631.8,1631.6,0.55]
[1745325122054,6.12764335,1632.0,1631.7,6.1947]
[1745325122452,6.94252284,1632.1,1631.7,12.32326123]
[1745325123301,6.94252284,1632.1,1631.7,16.07761317]
[1745325123484,13.06993014,1632.1,1631.7,9.94905194]
[1745325123670,6.94252284,1632.1,1631.7,9.94905194]
[1745325124062,13.06989916,1632.1,1631.7,16.07762109]
[1745325124763,6.94252284,1632.1,1631.7,16.07762109]
[1745325124966,6.12745659,1632.0,1631.7,9.94905194]
[1745325125280,13.06989789,1632.1,1631.7,9.94905194]
[1745325125479,6.12746042,1632.0,1631.7,9.94905194]
[1745325125679,6.12785314,1631.9,1631.7,9.94905194]
[1745325125883,12.25517058,1632.0,1631.7,9.94905194]
[1745325126080,6.12790771,1631.9,1631.7,9.94905194]
[1745325126281,6.12790771,1631.9,1631.7,9.13935194]
[1745325126674,12.25609072,1631.9,1631.7,5.385]
[1745325126895,6.12790771,1631.9,1631.7,5.385]
[1745325127601,6.12870463,1631.7,1631.5,0.8097]
[1745325127763,6.12831271,1631.8,1631.7,5.384]
[1745325128496,6.12802248,1631.9,1631.7,5.384]
[1745325129111,6.12820198,1631.8,1631.7,5.384]
[1745325129291,6.12896416,1631.6,1631.3,4.56405194]
[1745325129489,6.94462883,1631.5,1631.4,5.384]
[1745325132020,6.12913738,1631.6,1631.4,5.384]
[1745325132928,13.02661096,1631.7,1631.4,5.384]
[1745325133208,6.12898885,1631.6,1631.4,5.384]
[1745325134412,6.89774359,1631.7,1631.4,5.9224]
[1745325134609,6.12842874,1631.8,1631.4,12.87267887]
[1745325134773,6.12842874,1631.8,1631.4,12.8726516]
[1745325134974,6.12801748,1631.9,1631.5,10.43358011]
[1745325135175,12.25611961,1631.9,1631.5,10.43358011]
[1745325135505,6.12801748,1631.9,1631.6,1.04335801]
[1745325136700,12.25614617,1631.9,1631.6,1.04335801]
[1745325137027,6.12801748,1631.9,1631.6,1.04335801]
[1745325137203,12.25610981,1631.9,1631.6,1.04335801]
[1745325137511,6.1277347,1632.0,1631.7,0.8206]
[1745325138014,6.12801711,1631.9,1631.8,5.385]
[1745325138320,6.1277347,1632.0,1631.8,5.385]
[1745325138625,6.12746307,1632.0,1631.8,6.2056]
[1745325139224,6.12723338,1632.1,1631.8,6.2056]
[1745325139520,6.89592001,1632.2,1631.8,7.81444877]
[1745325139829,6.12711295,1632.1,1631.8,7.81444877]
[1745325140611,6.12746232,1632.0,1631.8,7.81444877]
[1745325140796,12.2545237,1632.1,1631.8,7.81444877]
[1745325141001,12.25447906,1632.1,1631.8,7.81444877]
[1745325141316,6.12711295,1632.1,1631.8,7.81444877]
[1745325141503,12.25451089,1632.1,1631.8,7.81444877]
[1745325141706,6.12770171,1632.0,1631.8,7.81444877]
[1745325142534,6.12770171,1632.0,1631.8,5.385]
[1745325144900,12.25541335,1632.0,1631.8,5.385]
[1745325146325,6.12770171,1632.0,1631.8,5.385]
[1745325147641,6.12770133,1632.0,1631.8,5.385]
[1745325148394,6.12644111,1632.3,1631.9,6.9340705]
[1745325148395,6.12647956,1632.3,1631.9,6.9340705]
[1745325148589,6.12647956,1632.3,1631.9,9.15421733]
[1745325149490,6.12647956,1632.3,1631.9,9.154134]
[1745325150422,6.12647956,1632.3,1631.9,9.15412273]
[1745325150936,6.12647956,1632.3,1631.9,15.28169863]
[1745325151433,6.12647956,1632.3,1632.0,6.12744255]
[1745325151636,13.06369947,1632.4,1632.0,6.12744255]
[1745325151836,0.8113,1632.4,1632.1,6.12679451]
[1745325152044,6.93663665,1632.6,1632.2,16.06856899]
[1745325152364,6.93663665,1632.6,1632.2,16.00723729]
[1745325153051,6.12606377,1632.4,1632.2,5.32]
[1745325153212,6.12632481,1632.3,1632.2,5.32]
[1745325153741,6.12606377,1632.4,1632.2,5.32]
[1745325154325,6.12571823,1632.5,1632.2,5.32]
[1745325154525,12.25165592,1632.5,1632.2,5.32]
[1745325155051,6.12571823,1632.5,1632.2,5.32]
[1745325156125,6.12571823,1632.5,1632.2,6.8401266]
[1745325156322,6.93673232,1632.6,1632.2,12.96672044]
[1745325156529,6.93673232,1632.6,1632.3,0.8064]
[1745325158056,12.25016684,1632.7,1632.3,6.93260887]
[1745325158212,12.25018225,1632.7,1632.3,6.93260887]
[1745325158612,6.12504051,1632.7,1632.3,6.93260887]
[1745325158817,6.12504051,1632.7,1632.3,1.80154577]
[1745325158818,6.12522186,1632.6,1632.3,1.80154577]
[1745325159021,13.01597717,1632.8,1632.3,17.80838027]
[1745325159224,6.12494322,1632.7,1632.3,11.68207361]
[1745325160179,6.12494322,1632.7,1632.3,17.8082076]
[1745325160823,19.14070014,1632.8,1632.3,11.6820317]
[1745325161135,6.12484872,1632.7,1632.4,1.16820317]
[1745325161350,6.12531907,1632.6,1632.4,1.16820317]
[1745325161524,12.24996278,1632.7,1632.3,11.68219774]
[1745325161727,6.12521281,1632.6,1632.3,11.68219774]
[1745325161958,12.25002669,1632.7,1632.3,11.68219774]
[1745325162226,6.12484872,1632.7,1632.3,11.68219774]
[1745325163254,12.24995972,1632.7,1632.3,11.68219774]
[1745325163424,12.24995972,1632.7,1632.4,1.16821977]
[1745325163950,6.12484872,1632.7,1632.4,1.16821977]
[1745325164146,6.12484872,1632.7,1632.3,11.68206884]
[1745325164333,6.12491376,1632.7,1632.3,5.55589771]
[1745325164533,12.25004551,1632.7,1632.3,11.68203018]
[1745325164751,6.12491376,1632.7,1632.3,17.80816427]
[1745325164945,6.12491376,1632.7,1632.3,11.68203018]
[1745325165142,6.12533466,1632.6,1632.3,0.99514577]
[1745325165347,6.12557427,1632.5,1632.4,5.319]
[1745325169383,6.91457427,1632.5,1632.4,5.319]
[1745325170887,6.91457427,1632.5,1632.1,4.2182969]
[1745325170888,6.12613669,1632.4,1632.1,4.2182969]
[1745325171066,6.12613669,1632.4,1632.3,5.319]
[1745325172096,13.04067584,1632.5,1632.3,5.319]
[1745325172596,6.12575216,1632.5,1632.3,5.319]
[1745325172757,6.12594952,1632.4,1632.3,5.319]
[1745325178588,12.25160823,1632.5,1632.3,5.319]
[1745325178898,6.12575216,1632.5,1632.3,5.319]
[1745325180172,6.12594952,1632.4,1632.3,5.319]
[1745325180403,6.92594952,1632.4,1632.0,0.8096]
[1745325180574,6.12670015,1632.2,1632.1,5.265]
[1745325180890,6.12729281,1632.1,1632.0,5.265]
[1745325182185,6.12685571,1632.2,1632.0,5.265]
[1745325182801,6.12707554,1632.1,1632.0,5.265]
[1745325185890,6.12782645,1631.9,1631.7,23.95135194]
[1745325186059,6.12782645,1631.9,1631.8,5.265]
[1745325188763,6.92820198,1631.8,1631.7,20.197]
[1745325188960,8.84660616,1631.8,1631.7,20.197]
[1745325189273,8.84660616,1631.8,1631.7,25.463]
[1745325190495,6.92820198,1631.8,1631.7,25.463]
[1745325191297,6.12951394,1631.5,1631.4,5.266]
[1745325202611,6.12932883,1631.5,1631.4,5.266]
[1745325205223,12.25759913,1631.7,1631.4,6.0357]
[1745325205817,6.12872103,1631.7,1631.4,6.0357]
[1745325206110,13.00979856,1632.0,1631.6,1.3197]
[1745325206311,6.12788795,1631.9,1631.6,1.3197]
[1745325206520,6.12758591,1632.0,1631.6,7.44863852]
[1745325206814,6.12723732,1632.1,1631.7,9.88278475]
[1745325206983,6.12723732,1632.1,1631.8,5.267]
[1745325207181,6.12745098,1632.0,1631.8,5.267]
[1745325209525,6.12782645,1631.9,1631.8,5.267]
[1745325209818,6.88222645,1631.9,1631.8,5.267]
[1745325211217,6.12782645,1631.9,1631.8,5.267]
[1745325213415,6.12745098,1632.0,1631.8,6.0367]
[1745325214107,6.12722471,1632.1,1631.8,6.64037]
[1745325214532,6.12710904,1632.1,1631.8,6.64037]
[1745325215827,12.25444876,1632.1,1631.8,6.64037]
[1745325216027,6.12710904,1632.1,1631.8,6.64037]
[1745325216600,6.12782645,1631.9,1631.8,6.0367]
[1745325216805,6.12782645,1631.9,1631.8,5.267]
[1745325217015,13.00975168,1632.0,1631.8,5.267]
[1745325217208,6.88203824,1632.0,1631.8,5.267]
[1745325217529,13.00977563,1632.0,1631.8,5.267]
[1745325217824,13.00896465,1632.1,1631.8,5.267]
[1745325218030,6.12754831,1632.0,1631.8,5.267]
[1745325218399,12.25525003,1632.0,1631.8,5.267]
[1745325218599,6.12754831,1632.0,1631.8,5.267]
[1745325219331,12.25528943,1632.0,1631.8,5.267]
[1745325219528,12.25532861,1632.0,1631.8,5.267]
[1745325220420,6.12754831,1632.0,1631.8,5.267]
[1745325221139,12.255369,1632.0,1631.8,5.267]
[1745325221316,6.12782645,1631.9,1631.8,5.267]
[1745325222540,6.12754831,1632.0,1631.8,5.267]
[1745325223329,6.88162547,1632.1,1631.8,5.267]
[1745325223533,6.12722547,1632.1,1631.8,6.0483]
[1745325224138,6.12691892,1632.2,1631.8,8.25423597]
[1745325224305,6.12691892,1632.2,1631.8,14.38221197]
[1745325224635,12.2539649,1632.2,1631.8,14.38221197]
[1745325224803,6.12709355,1632.1,1631.8,8.25423597]
[1745325224998,6.12757259,1632.0,1631.8,8.25423597]
[1745325225228,6.12757259,1632.0,1631.8,5.267]
[1745325226633,6.12782645,1631.9,1631.8,5.267]
[1745325227014,6.92767259,1632.0,1631.8,5.267]
[1745325228802,13.05541499,1632.0,1631.8,5.267]
[1745325229125,13.05539486,1632.0,1631.8,5.267]
[1745325229612,6.92767259,1632.0,1631.8,5.267]
[1745325231738,6.12731254,1632.1,1631.8,5.267]
[1745325231912,6.92699352,1632.2,1631.8,6.575]
[1745325232117,6.92699352,1632.2,1631.8,12.7031612]
[1745325232638,13.05406447,1632.2,1631.8,12.7031612]
[1745325232837,6.12711298,1632.1,1631.8,6.575]
[1745325234243,6.12711298,1632.1,1631.8,12.70315821]
[1745325234440,6.12689352,1632.2,1631.9,1.27031582]
[1745325234632,6.12689352,1632.2,1631.9,5.02466776]
[1745325235540,12.25387297,1632.2,1631.9,5.02466776]
[1745325235715,6.12689352,1632.2,1631.9,5.02466776]
[1745325238215,6.12710363,1632.1,1631.9,5.02466776]
[1745325238436,6.12710363,1632.1,1631.9,1.27031582]
[1745325239944,6.12689352,1632.2,1631.9,1.27031582]
[1745325240816,12.25387994,1632.2,1631.9,1.27031582]
[1745325241015,6.12689352,1632.2,1631.8,12.70297122]
[1745325241554,12.25384153,1632.2,1631.8,12.70297122]
[1745325241863,6.12689352,1632.2,1631.8,12.70297122]
[1745325242848,12.25384411,1632.2,1631.8,12.70297122]
[1745325243162,6.12719426,1632.1,1631.8,6.575]
[1745325243371,6.12719426,1632.1,1631.8,12.70318116]
[1745325243677,6.12719426,1632.1,1631.9,1.27031812]
[1745325243890,13.01074284,1632.2,1631.9,1.27031812]
[1745325244167,6.88379352,1632.2,1631.9,1.27031812]
[1745325244376,0.1344,1632.5,1632.1,3.75435194]
[1745325244529,0.1344,1632.5,1632.2,11.37547152]
[1745325244872,0.1344,1632.5,1632.3,1.89004715]
[1745325245768,6.12594952,1632.4,1632.2,5.249]
[1745325246453,12.252181,1632.4,1632.2,5.249]
[1745325246656,6.12594952,1632.4,1632.2,5.249]
[1745325247152,12.25222041,1632.4,1632.2,5.249]
[1745325247476,12.25219218,1632.4,1632.2,5.249]
[1745325248764,6.12594952,1632.4,1632.2,5.249]
[1745325249084,12.25226384,1632.4,1632.2,5.249]
[1745325249246,6.12594952,1632.4,1632.2,5.249]
[1745325249441,7.01703903,1632.5,1632.2,6.22458519]
[1745325249678,6.26013903,1632.5,1632.2,6.22458519]
[1745325250054,6.88191627,1632.7,1632.3,0.6475]
[1745325250279,6.12537924,1632.6,1632.3,4.40185194]
[1745325250472,6.12537924,1632.6,1632.4,0.44018519]
[1745325253082,6.12463021,1632.8,1632.5,4.36560469]
[1745325253245,6.12482391,1632.7,1632.6,5.248]
[1745325253450,12.25098261,1632.6,1632.4,0.44018519]
[1745325253651,6.12544502,1632.6,1632.5,5.248]
[1745325254185,6.12501028,1632.7,1632.5,5.248]
[1745325254683,12.25012365,1632.7,1632.5,5.248]
[1745325255580,6.12501028,1632.7,1632.5,5.248]
[1745325256278,12.25012822,1632.7,1632.5,5.248]
[1745325256792,6.12501028,1632.7,1632.5,5.248]
[1745325257913,6.12519906,1632.6,1632.5,5.248]
[1745325258094,13.02494593,1632.7,1632.5,5.248]
[1745325258704,6.89981028,1632.7,1632.5,5.248]
[1745325259265,6.12501028,1632.7,1632.5,5.248]
[1745325259716,13.02420796,1632.8,1632.5,5.248]
[1745325260190,6.12484984,1632.7,1632.5,5.248]
[1745325261080,6.12519906,1632.6,1632.5,5.248]
[1745325261291,12.24993262,1632.7,1632.5,5.248]
[1745325261809,6.12519906,1632.6,1632.5,5.248]
[1745325261993,6.12484984,1632.7,1632.5,5.248]
[1745325264314,6.8994895,1632.8,1632.5,9.00235194]
[1745325264470,6.1246895,1632.8,1632.5,9.9087124]
[1745325264666,6.1246895,1632.8,1632.5,9.78425194]
[1745325265798,12.24939549,1632.8,1632.5,9.78425194]
[1745325267002,6.12494162,1632.7,1632.5,9.78425194]
[1745325267514,12.24948535,1632.8,1632.5,9.78425194]
[1745325268499,6.12498556,1632.7,1632.5,5.248]
[1745325269011,6.12468846,1632.8,1632.5,5.248]
[1745325269181,6.12468846,1632.8,1632.5,10.83051149]
[1745325269391,12.24863083,1632.9,1632.6,0.7819]
[1745325269584,12.24791227,1633.0,1632.6,0.7819]
[1745325270118,6.12411296,1632.9,1632.6,0.7819]
[1745325270779,6.1238977,1633.0,1632.6,6.90696136]
[1745325270983,6.12408231,1632.9,1632.6,6.90696136]
[1745325271719,6.12408231,1632.9,1632.6,0.7819]
[1745325272218,6.12465789,1632.8,1632.6,0.7819]
[1745325273115,12.24939193,1632.8,1632.5,11.61241149]
[1745325273317,6.12507069,1632.7,1632.5,5.248]
[1745325274230,12.2502346,1632.7,1632.5,5.248]
[1745325274537,6.12507069,1632.7,1632.5,5.248]
[1745325276135,6.90024179,1632.6,1632.3,5.246]
[1745325276292,6.12594952,1632.4,1632.3,5.246]
[1745325276490,6.12594952,1632.4,1632.2,25.436]
[1745325276491,6.12632481,1632.3,1632.2,25.436]
[1745325279657,6.12594952,1632.4,1632.2,25.436]
[1745325279821,12.25157302,1632.5,1632.2,25.436]
[1745325280006,6.90015073,1632.6,1632.2,25.436]
[1745325280212,6.1256133,1632.5,1632.3,3.75435194]
[1745325280613,6.12535073,1632.6,1632.3,4.53405194]
[1745325281560,6.12505456,1632.7,1632.3,14.12527152]
[1745325281765,6.12505456,1632.7,1632.3,20.25141448]
[1745325282760,6.12505456,1632.7,1632.3,14.12527152]
[1745325283120,6.12505456,1632.7,1632.3,20.25137631]
[1745325283659,6.12505456,1632.7,1632.3,14.12525781]
[1745325283859,12.2502172,1632.7,1632.4,1.27031812]
[1745325284158,6.12505456,1632.7,1632.4,1.27031812]
[1745325284357,6.12505456,1632.7,1632.5,5.246]
[1745325286156,6.12468413,1632.8,1632.6,0.7797]
[1745325286464,6.12429568,1632.9,1632.6,0.7797]
[1745325286666,0.8178,1633.0,1632.6,0.7797]
[1745325286667,6.12466895,1632.8,1632.6,0.7797]
[1745325288063,6.12519727,1632.7,1632.5,5.246]
[1745325288970,6.12512383,1632.7,1632.5,5.246]
[1745325290425,6.94218138,1632.9,1632.5,15.12581925]
[1745325290761,6.12455804,1632.8,1632.5,9.00035194]
[1745325290922,6.12455804,1632.8,1632.6,0.90003519]
[1745325291123,6.12482391,1632.7,1632.5,9.00035194]
[1745325291322,6.12482391,1632.7,1632.5,5.246]
[1745325292866,12.24991932,1632.7,1632.5,5.246]
[1745325293035,6.12482391,1632.7,1632.5,5.246]
[1745325293970,6.12482391,1632.7,1632.6,5.246]
[1745325295174,8.16757253,1632.7,1632.6,5.246]
[1745325295695,6.94262391,1632.7,1632.6,5.246]
[1745325296159,6.12463799,1632.8,1632.6,5.246]
[1745325296357,6.12482391,1632.7,1632.6,5.246]
[1745325297042,6.12536189,1632.6,1632.3,3.75435194]
[1745325297245,6.12536189,1632.6,1632.4,5.246]
[1745325297800,6.12536189,1632.6,1632.2,20.9746]
[1745325297801,6.12567056,1632.5,1632.2,20.9746]
[1745325297948,6.12567056,1632.5,1632.3,5.246]
[1745325297949,6.12619575,1632.4,1632.3,5.246]
[1745325298277,6.12594952,1632.4,1632.2,20.19]
[1745325298479,6.12594952,1632.4,1632.3,5.246]
[1745325299487,6.12632481,1632.3,1632.2,20.19]
[1745325299687,6.12632481,1632.3,1632.2,25.436]
[1745325300187,6.88344952,1632.4,1632.2,25.436]
[1745325300399,13.00966898,1632.4,1632.2,25.436]
[1745325300683,6.12594952,1632.4,1632.2,25.436]
[1745325301083,6.95360648,1632.5,1632.2,25.436]
[1745325301273,13.0794971,1632.5,1632.2,25.436]
[1745325301674,6.95360648,1632.5,1632.2,25.436]
[1745325302000,13.07945161,1632.5,1632.2,25.436]
[1745325302207,6.95360648,1632.5,1632.2,25.436]
[1745325303840,6.95360648,1632.5,1632.2,29.19035194]
[1745325304605,6.12598432,1632.4,1632.2,29.19035194]
[1745325305322,6.95360648,1632.5,1632.2,9.00035194]
[1745325305616,6.95287659,1632.7,1632.3,6.90879998]
[1745325305785,6.12522957,1632.6,1632.3,6.90879998]
[1745325305983,6.12497659,1632.7,1632.3,6.90879998]
[1745325306182,6.12497659,1632.7,1632.4,3.75435194]
[1745325306709,6.12534284,1632.6,1632.3,0.7826]
[1745325307078,12.25082887,1632.6,1632.3,0.7826]
[1745325307409,6.12534284,1632.6,1632.3,0.7826]
[1745325307578,8.1781664,1632.6,1632.1,1.23362705]
[1745325307779,6.12632338,1632.4,1632.0,0.7826]
[1745325307981,6.12633818,1632.3,1632.1,5.245]
[1745325310315,6.95404336,1632.4,1632.1,5.245]
[1745325311425,6.08,1632.7,1632.2,1.3577]
[1745325311588,6.08,1632.7,1632.5,3.75435194]
[1745325311788,13.50763215,1632.7,1632.6,5.245]
[1745325311996,6.94808239,1632.8,1632.6,5.245]
[1745325312512,13.07281912,1632.8,1632.6,5.245]
[1745325312716,6.12482391,1632.7,1632.6,5.245]
[1745325313223,6.12558029,1632.5,1632.2,0.8077]
[1745325313586,6.12558029,1632.5,1632.3,5.245]
[1745325313916,6.12520169,1632.6,1632.3,5.245]
[1745325314109,6.9485705,1632.7,1632.3,15.12556698]
[1745325314311,6.9485705,1632.7,1632.3,15.12543619]
[1745325315314,13.07284778,1632.8,1632.3,15.12543619]
[1745325315519,13.07284778,1632.8,1632.5,4.56205194]
[1745325315520,6.12460313,1632.8,1632.5,4.56205194]
[1745325316789,12.24935266,1632.8,1632.5,4.56205194]
[1745325317015,6.12460313,1632.8,1632.5,4.56205194]
[1745325317423,12.24931377,1632.8,1632.5,4.56205194]
[1745325317602,6.12483718,1632.7,1632.5,4.56205194]
[1745325318003,6.12483718,1632.7,1632.5,5.02802039]
[1745325319328,6.12483718,1632.7,1632.6,5.245]
[1745325319922,6.12460313,1632.8,1632.6,5.245]
[1745325320123,12.24934824,1632.8,1632.6,5.245]
[1745325320927,6.12482391,1632.7,1632.6,5.245]
[1745325321228,12.24938479,1632.8,1632.6,5.245]
[1745325321531,6.12482391,1632.7,1632.6,5.245]
[1745325324023,6.12425373,1632.9,1632.6,5.245]
[1745325324234,13.07135281,1633.0,1632.7,3.75435194]
[1745325325432,6.12409239,1632.9,1632.7,3.75435194]
[1745325327227,6.9473572,1633.0,1632.7,3.75435194]
[1745325327410,6.12350816,1633.1,1632.8,0.7906]
[1745325328814,13.06291707,1633.2,1632.8,0.7906]
[1745325329336,13.06291707,1633.2,1632.8,2.52501234]
[1745325329503,6.93969571,1633.2,1632.8,2.52501234]
[1745325329705,13.06293491,1633.2,1632.8,2.52501234]
[1745325330035,6.12342639,1633.1,1632.8,2.52501234]
[1745325331537,6.12342639,1633.1,1632.9,0.60286974]
[1745325331739,6.12342639,1633.1,1633.0,5.244]
[1745325332040,6.12342639,1633.1,1633.0,5.84916094]
[1745325332203,6.12319571,1633.2,1633.0,5.84916094]
[1745325332408,6.12332374,1633.1,1633.0,5.84916094]
[1745325333236,6.93982374,1633.1,1633.0,5.84916094]
[1745325334105,8.24611983,1633.1,1633.0,5.84916094]
[1745325335141,6.93982374,1633.1,1633.0,5.84916094]
[1745325335481,6.12332374,1633.1,1633.0,5.84916094]
[1745325335842,6.9396372,1633.2,1633.0,5.84916094]
[1745325336043,6.12332374,1633.1,1633.0,5.84916094]
[1745325340511,12.24633987,1633.2,1633.0,5.84916094]
[1745325340717,12.24640937,1633.2,1633.0,5.84916094]
[1745325341249,6.12332374,1633.1,1633.0,5.84916094]
[1745325346621,6.12332374,1633.1,1633.0,0.60516094]
[1745325346622,12.46663566,1633.1,1633.0,0.60516094]
[1745325346850,6.87644879,1632.8,1632.5,5.242]
[1745325347027,6.12511375,1632.7,1632.5,5.242]
[1745325347230,6.12511375,1632.7,1632.6,0.50450945]
[1745325347758,6.87663226,1632.8,1632.6,0.50450945]
[1745325348345,13.00144213,1632.8,1632.6,0.50450945]
[1745325348553,6.87663226,1632.8,1632.6,0.50450945]
[1745325348950,6.12463226,1632.8,1632.6,0.50450945]
[1745325349150,6.832,1633.0,1632.6,0.50450945]
[1745325349351,6.12482391,1632.7,1632.6,0.50450945]
[1745325350063,6.87682391,1632.7,1632.6,0.50450945]
[1745325353529,12.95682391,1632.7,1632.6,0.50450945]
[1745325353730,6.87794952,1632.4,1632.3,25.432]
[1745325353931,6.87794952,1632.4,1632.3,20.64373884]
[1745325359385,6.12575767,1632.5,1632.3,20.64373884]
[1745325359556,12.25090594,1632.6,1632.3,20.64373884]
[1745325359883,13.45605155,1632.6,1632.3,20.64373884]
[1745325360287,12.20493292,1632.7,1632.4,3.75435194]
[1745325360509,18.33002599,1632.7,1632.4,4.55065194]
[1745325360790,18.33003589,1632.7,1632.5,0.4542238]
[1745325360954,12.20493292,1632.7,1632.5,0.4542238]
[1745325361489,6.08,1632.7,1632.5,0.4542238]
[1745325361814,6.12421554,1632.9,1632.6,5.244]
[1745325361958,6.12421554,1632.9,1632.6,8.99835194]
[1745325362286,6.12421554,1632.9,1632.7,1.25022327]
[1745325365198,6.87587211,1633.0,1632.7,1.25022327]
[1745325365400,6.12387211,1633.0,1632.7,1.25022327]
[1745325365702,6.12423052,1632.9,1632.7,1.25022327]
[1745325367904,6.12444879,1632.8,1632.7,0.45392327]
[1745325368703,6.12423052,1632.9,1632.7,0.45392327]
[1745325369091,6.12444879,1632.8,1632.7,0.45392327]
[1745325372077,8.13731672,1632.8,1632.7,0.45392327]
[1745325372282,6.12572957,1632.5,1632.3,0.7542]
[1745325372489,6.12545487,1632.6,1632.3,0.7542]
[1745325372695,6.12545487,1632.6,1632.3,4.50855194]
[1745325373506,12.25096499,1632.6,1632.3,4.50855194]
[1745325373666,6.12545487,1632.6,1632.3,4.50855194]
[1745325374083,6.12545487,1632.6,1632.4,3.0]
[1745325375382,6.12505599,1632.7,1632.4,3.0]
[1745325375579,6.12466175,1632.8,1632.5,3.75435194]
[1745325375786,6.12466175,1632.8,1632.5,10.63411438]
[1745325376081,6.12466175,1632.8,1632.6,0.45043925]
[1745325376481,6.91282391,1632.7,1632.6,0.45043925]
[1745325376906,6.12539629,1632.6,1632.2,19.7616865]
[1745325378509,6.12539629,1632.6,1632.4,3.0]
[1745325378874,6.91282391,1632.7,1632.4,3.0]
[1745325379608,13.03791359,1632.7,1632.4,3.0]
[1745325380108,6.91282391,1632.7,1632.4,3.0]
[1745325380304,6.12482391,1632.7,1632.4,6.75435194]
[1745325380608,6.12482391,1632.7,1632.4,15.53510811]
[1745325380810,12.24995571,1632.7,1632.4,9.40920689]
[1745325381107,6.12482391,1632.7,1632.4,9.40920689]
[1745325381808,6.12573315,1632.5,1632.2,9.88090326]
[1745325381976,6.12573315,1632.5,1632.3,3.0]
[1745325382180,6.12594952,1632.4,1632.2,3.75435194]
[1745325382380,6.91394952,1632.4,1632.2,3.75435194]
[1745325382580,13.04021517,1632.4,1632.2,3.75435194]
[1745325384114,13.0401758,1632.4,1632.2,3.75435194]
[1745325388318,6.91394952,1632.4,1632.2,3.75435194]
[1745325388517,13.04021888,1632.4,1632.2,3.75435194]
[1745325389195,13.04021888,1632.4,1632.2,3.88955194]
[1745325391319,6.91394952,1632.4,1632.3,0.45581049]
[1745325391528,8.217921,1632.4,1632.3,0.45581049]
[1745325391839,3.0,1632.3,1632.2,0.1352]
[1745325392022,15.98392481,1632.3,1632.2,0.1352]
[1745325397541,6.12632481,1632.3,1632.2,0.1352]
[1745325397714,6.12594952,1632.4,1632.2,4.65915194]
[1745325397919,6.12578924,1632.5,1632.2,5.73777101]
[1745325398336,6.12578924,1632.5,1632.2,6.20214]
[1745325398724,6.12578924,1632.5,1632.2,12.32880454]
[1745325399446,6.12578924,1632.5,1632.3,0.42071495]
[1745325402418,6.12538731,1632.6,1632.3,0.42071495]
[1745325402626,6.12538731,1632.6,1632.3,7.88321135]
[1745325402824,6.12538731,1632.6,1632.3,7.82195175]
[1745325406056,12.25009425,1632.7,1632.3,7.82195175]
[1745325406369,6.12495736,1632.7,1632.3,7.82195175]
[1745325406661,6.12530531,1632.6,1632.3,7.82195175]
[1745325407013,6.12530531,1632.6,1632.4,0.78219518]
[1745325407256,6.12530531,1632.6,1632.5,0.4202677]
[1745325407450,6.12472061,1632.8,1632.5,1.2072677]
[1745325407654,6.12418854,1632.9,1632.6,9.87942249]
[1745325408154,6.12389716,1633.0,1632.7,0.41668934]
[1745325408458,6.12347947,1633.1,1632.8,10.66578441]
[1745325408621,6.12333364,1633.1,1632.8,10.66578441]
[1745325408811,6.12307533,1633.2,1632.9,0.41483293]
[1745325409019,6.12307533,1633.2,1632.9,6.5388446]
[1745325409563,6.12307533,1633.2,1633.0,0.787]
[1745325409722,6.12307533,1633.2,1633.1,0.41463273]
[1745325410850,6.12276778,1633.3,1633.1,0.41463273]
[1745325411217,12.24561419,1633.3,1633.1,0.41463273]
[1745325411848,6.12294881,1633.2,1633.1,0.41463273]
[1745325412416,6.12276778,1633.3,1633.1,0.41463273]
[1745325412615,12.24564956,1633.3,1633.1,0.41463273]
[1745325413760,6.12294881,1633.2,1633.1,0.41463273]
[1745325414261,12.24570067,1633.3,1633.1,0.41463273]
[1745325414479,6.89846001,1633.5,1633.2,3.75435194]
[1745325414639,6.89707782,1633.9,1633.4,10.6633003]
[1745325414956,6.12016433,1634.0,1633.8,3.75435194]
[1745325415177,6.11939853,1634.2,1633.9,1.18873289]
[1745325415474,0.3971835,1634.5,1634.1,0.787]
[1745325415623,0.3971835,1634.5,1634.4,3.75435194]
[1745325415825,0.3971835,1634.5,1634.4,4.15210077]
[1745325416554,0.3971835,1634.5,1634.4,5.00027729]
[1745325416757,0.3971835,1634.5,1634.4,13.22879566]
[1745325416924,11.44378894,1635.6,1634.7,0.787]
[1745325417124,17.55775323,1635.6,1635.5,3.75435194]
[1745325417352,11.76270732,1635.6,1635.2,0.787]
[1745325417537,6.11658205,1634.9,1634.8,0.11185291]
[1745325417855,6.11658205,1634.9,1634.4,1.11189831]
[1745325417856,6.11718242,1634.8,1634.5,3.75435194]
[1745325418031,8.74989625,1634.9,1634.5,3.75435194]
[1745325418032,6.11679601,1634.9,1634.5,3.75435194]
[1745325418354,6.11680796,1634.9,1634.5,3.75435194]